fUSD/lending_fUSD_20250211
["ID","MTS","AMOUNT","RATE_DAILY","PERIOD"]
[352742983,1739286638268,-3433.32662276,0.00011535,2]
[352742984,1739286638278,-249.48,0.00011546,2]
[352742985,1739286638287,-2021.0,0.00011557,2]
[352742986,1739286638296,-81.19172036,0.00011557,2]
[352742987,1739286638313,-259.4202,0.00011557,2]
[352742988,1739286638325,-501.54078235,0.00011557,2]
[352742989,1739286638643,-193.79229729,0.00011557,2]
[352742990,1739286638652,-638.0,0.00011557,2]
[352742991,1739286638662,-569.0,0.00011557,2]
[352742992,1739286638671,-150.0,0.00011557,2]
[352742993,1739286638681,-1828.0,0.00011557,2]
[352742995,1739286638690,-1262.0,0.00011557,2]
[352742997,1739286638700,-908.0,0.00011557,2]
[352742999,1739286638709,-783.0,0.00011557,2]
[352743001,1739286638719,-2955.0,0.00011557,2]
[352743003,1739286638728,-1133.9148122,0.0001156,2]
[352743004,1739286638738,-150.20314539,0.00011589,2]
[352743005,1739286638747,-168.97853859,0.00011589,2]
[352743006,1739286638756,-150.0,0.00011616,2]
[352743007,1739286638766,-150.0,0.00011616,2]
[352743008,1739286638776,-247.8,0.00011616,2]
[352743009,1739286638785,-150.0,0.000117,2]
[352743010,1739286638795,-150.0,0.000117,2]
[352743011,1739286638804,-150.20314539,0.00011726,2]
[352743012,1739286638816,-617.58612233,0.0001174,2]
[352743013,1739286638826,-500.0,0.0001174,2]
[352743014,1739286638835,-153.76224086,0.0001174,2]
[352743015,1739286638845,-2000.0,0.0001178,2]
[352743016,1739286638856,-164.38613959,0.0001181,2]
[352743017,1739286638866,-274.77473991,0.00011838,2]
[352743018,1739286638875,-22230.0,0.00011841,2]
[352743019,1739286638886,-1000.0,0.000119,4]
[352743020,1739286638896,-249.48,0.000119,2]
[352743021,1739286638905,-249.48,0.000119,2]
[352743022,1739286638915,-249.48,0.000119,2]
[352743023,1739286638925,-249.48,0.000119,2]
[352743024,1739286638935,-249.48,0.000119,2]
[352743025,1739286638945,-32966.26037664,0.0001191,3]
[352743031,1739286640259,-635925.29538419,0.0001191,3]
[352743032,1739286640269,-250000.0,0.0001191,2]
[352743033,1739286640279,-1000.0,0.00011915,2]
[352743034,1739286640289,-153.64117978,0.00011973,2]
[352743035,1739286640299,-300.0,0.00011973,2]
[352743036,1739286640308,-300.0,0.00011973,2]
[352743037,1739286640317,-438.41,0.00011973,2]
[352743038,1739286640327,-150.0,0.00011973,2]
[352743039,1739286640337,-301.71605557,0.00011988,2]
[352743040,1739286640346,-2000.0,0.00012054,2]
[352743041,1739286640356,-196.55,0.00012089,2]
[352743042,1739286640365,-3433.32662276,0.00012169,2]
[352743043,1739286640374,-274.21,0.00012198,2]
[352743044,1739286640386,-3964.45,0.00012224,2]
[352743045,1739286640395,-155.901,0.00012224,2]
[352743046,1739286640404,-151.98809923,0.00012233,2]
[352743047,1739286640414,-151.32226141,0.00012233,2]
[352743048,1739286640424,-160.88640694,0.00012233,2]
[352743049,1739286640434,-500.0,0.00012233,2]
[352743050,1739286640443,-500.0,0.00012233,2]
[352743051,1739286640453,-171.66,0.00012272,2]
[352743052,1739286640463,-1000.0,0.00012288,2]
[352743053,1739286640473,-2000.0,0.00012328,2]
[352743054,1739286640483,-500.0,0.00012504,2]
[352743055,1739286640492,-500.0,0.00012504,2]
[352743056,1739286640501,-583.82698495,0.00012504,2]
[352743057,1739286640511,-301.71605557,0.00012532,2]
[352743058,1739286640520,-249.48,0.00012533,2]
[352743059,1739286640530,-2337.0,0.00012543,2]
[352743060,1739286640539,-2000.0,0.00012602,2]
[352743061,1739286640548,-1017.10769556,0.00012781,2]
[352743062,1739286640558,-500.33154872,0.00012781,2]
[352743063,1739286640567,-150.0,0.00012795,2]
[352743064,1739286640577,-3433.32662276,0.00012804,2]
[352743065,1739286640586,-152.0,0.00012871,3]
[352743066,1739286640595,-2000.0,0.00012876,2]
[352743067,1739286640604,-228.92,0.00012887,2]
[352743068,1739286640614,-29999.99,0.00012893,2]
[352743069,1739286640623,-384.37,0.00012893,2]
[352743070,1739286640635,-1000.0,0.000129,2]
[352743071,1739286640644,-5000.69435,0.0001292,2]
[352743072,1739286640654,-500.0,0.0001297,2]
[352743073,1739286640664,-249.48,0.0001299,2]
[352743074,1739286640673,-249.48,0.0001299,2]
[352743075,1739286640683,-249.48,0.0001299,2]
[352743076,1739286640694,-119966.40306963,0.00013,2]
[352743077,1739286640703,-550.0,0.00013,2]
[352743078,1739286640714,-775.33,0.00013041,2]
[352743079,1739286640723,-439.84,0.00013041,2]
[352743080,1739286640733,-775.33,0.00013041,2]
[352743081,1739286640742,-439.84,0.00013041,2]
[352743082,1739286640753,-439.84,0.00013041,2]
[352743083,1739286640762,-439.84,0.00013041,2]
[352743084,1739286640772,-439.84,0.00013041,2]
[352743085,1739286640781,-150.0,0.00013041,2]
[352743087,1739286640849,-300.0,0.00013041,2]
[352743088,1739286640859,-300.0,0.00013061,2]
[352743089,1739286640868,-301.71605557,0.00013075,2]
[352743090,1739286640880,-1000.0,0.00013079,2]
[352743091,1739286640890,-150.0,0.00013086,2]
[352743092,1739286640901,-150.0,0.0001309,2]
[352743093,1739286640910,-150.0,0.00013091,2]
[352743094,1739286640920,-150.0,0.00013102,2]
[352743095,1739286640930,-150.0,0.00013106,2]
[352743096,1739286640939,-150.0,0.00013109,2]
[352743097,1739286640949,-150.0,0.00013112,2]
[352743098,1739286640958,-150.0,0.00013113,2]
[352743099,1739286640967,-1000.0,0.00013113,2]
[352743100,1739286640977,-150.0,0.00013145,2]
[352743101,1739286640987,-152.0,0.00013149,4]
[352743102,1739286640996,-2000.0,0.0001315,2]
[352743103,1739286641006,-150.0,0.00013152,2]
[352743104,1739286641016,-369.9188841,0.00013155,2]
[352743105,1739286641026,-150.0,0.00013155,2]
[352743106,1739286641036,-150.0,0.00013161,2]
[352743107,1739286641045,-190.74801469,0.00013167,2]
[352743108,1739286641056,-150.0,0.00013167,2]
[352743109,1739286641066,-150.0,0.0001317,2]
[352743110,1739286641076,-150.0,0.00013179,2]
[352743111,1739286641085,-150.0,0.00013182,2]
[352743112,1739286641094,-150.0,0.00013183,2]
[352743113,1739286641104,-150.0,0.00013183,2]
[352743114,1739286641114,-150.0,0.00013184,2]
[352743115,1739286641123,-150.0,0.00013185,2]
[352743116,1739286641135,-262.99849374,0.00013188,2]
[352743117,1739286641144,-150.0,0.00013193,2]
[352743118,1739286641154,-150.0,0.00013193,2]
[352743119,1739286641164,-202.0,0.00013194,2]
[352743120,1739286641173,-150.0,0.00013195,2]
[352743121,1739286641183,-150.0,0.00013196,2]
[352743122,1739286641193,-150.0,0.00013199,2]
[352743123,1739286641203,-18264.12168978,0.00013199,2]
[352743124,1739286641212,-300.0,0.00013206,2]
[352743125,1739286641221,-150.0,0.00013214,2]
[352743126,1739286641231,-150.0,0.00013217,2]
[352743127,1739286641241,-186.01293845,0.00013226,2]
[352743128,1739286641250,-150.83,0.00013233,2]
[352743129,1739286641260,-150.0,0.00013233,2]
[352743130,1739286641269,-150.0,0.00013233,2]
[352743131,1739286641279,-877.68,0.00013233,2]
[352743132,1739286641288,-150.0,0.00013233,2]
[352743133,1739286641298,-249.48,0.00013233,2]
[352743134,1739286641307,-1000.0,0.00013238,2]
[352743135,1739286641316,-150.0,0.00013243,2]
[352743136,1739286641325,-150.0,0.00013263,2]
[352743137,1739286641335,-150.0,0.00013271,2]
[352743138,1739286641344,-9062.03995358,0.00013272,2]
[352743139,1739286641353,-5000.0,0.00013272,2]
[352743140,1739286641363,-5000.0,0.00013272,2]
[352743141,1739286641372,-5000.0,0.00013272,2]
[352743142,1739286641384,-5000.0,0.00013272,2]
[352743143,1739286641395,-150.0,0.00013279,2]
[352743144,1739286641404,-150.0,0.00013279,2]
[352743145,1739286641414,-150.0,0.00013287,2]
[352743146,1739286641423,-1500.0,0.0001329,2]
[352743147,1739286641433,-150.0,0.00013304,2]
[352743148,1739286641442,-500.0,0.00013317,2]
[352743149,1739286641451,-2000.0,0.00013317,2]
[352743150,1739286641461,-500.0,0.00013317,2]
[352743151,1739286641470,-200.0,0.00013317,2]
[352743152,1739286641480,-150.0,0.00013328,2]
[352743153,1739286641490,-150.0,0.00013331,2]
[352743154,1739286641500,-581.12,0.00013369,2]
[352743155,1739286641509,-400.0,0.0001337,2]
[352743156,1739286641518,-500.11265205,0.0001337,2]
[352743157,1739286641527,-150.0,0.00013372,2]
[352743158,1739286641537,-164.18110534,0.0001339,10]
[352743159,1739286641546,-150.0,0.00013404,2]
[352743160,1739286641555,-1469.7735144,0.00013415,2]
[352743161,1739286641565,-1205.5331763,0.00013415,2]
[352743162,1739286641575,-1441.7616978,0.00013415,2]
[352743163,1739286641584,-2000.0,0.00013424,2]
[352743164,1739286641594,-152.0,0.00013428,5]
[352743165,1739286641603,-3433.32662276,0.00013439,2]
[352743166,1739286641612,-3913.0,0.00013478,4]
[352743167,1739286641622,-249.48,0.0001349,2]
[352743168,1739286641633,-1000.0,0.000135,2]
[352743169,1739286641643,-43000.0,0.000135,3]
[352743170,1739286641651,-274.21,0.00013553,2]
[352743171,1739286641666,-400.0,0.0001357,2]
[352743172,1739286641675,-400.0,0.0001357,2]
[352743173,1739286641685,-300.0,0.0001357,2]
[352743174,1739286641694,-300.0,0.0001357,2]
[352743175,1739286641704,-196.55,0.000136,2]
[352743176,1739286641714,-249.48,0.00013604,2]
[352743177,1739286641723,-5800.0,0.00013606,2]
[352743178,1739286641733,-5800.0,0.00013614,2]
[352743179,1739286641743,-301.71605557,0.00013619,2]
[352743180,1739286641752,-5800.0,0.00013623,2]
[352743181,1739286641762,-5800.0,0.00013631,2]
[352743182,1739286641772,-5800.0,0.0001364,2]
[352743183,1739286641781,-5800.0,0.00013648,2]
[352743184,1739286641791,-5800.0,0.00013657,2]
[352743185,1739286641802,-5800.0,0.00013665,2]
[352743186,1739286641818,-5800.0,0.00013674,2]
[352743187,1739286641828,-249.48,0.0001368,2]
[352743188,1739286641838,-5800.0,0.00013682,2]
[352743189,1739286641856,-5800.0,0.00013691,2]
[352743190,1739286641866,-2000.0,0.00013698,2]
[352743191,1739286641876,-500.0,0.00013699,2]
[352743192,1739286641889,-500.0,0.00013699,2]
[352743193,1739286641899,-500.0,0.00013699,2]
[352743194,1739286641909,-500.0,0.00013699,2]
[352743195,1739286641919,-500.0,0.00013699,2]
[352743196,1739286641929,-500.0,0.00013699,2]
[352743197,1739286641938,-500.0,0.00013699,2]
[352743198,1739286641948,-500.0,0.00013699,2]
[352743199,1739286641958,-500.0,0.00013699,2]
[352743200,1739286641967,-500.0,0.00013699,2]
[352743201,1739286641977,-160.48,0.00013699,2]
[352743202,1739286641986,-160.48,0.00013699,2]
[352743203,1739286641996,-160.48,0.00013699,2]
[352743204,1739286642005,-160.48,0.00013699,2]
[352743205,1739286642015,-160.48,0.00013699,2]
[352743206,1739286642024,-160.51138,0.00013699,2]
[352743207,1739286642034,-153.0,0.00013699,2]
[352743208,1739286642043,-153.0,0.00013699,2]
[352743209,1739286642052,-153.0,0.00013699,2]
[352743210,1739286642062,-153.0,0.00013699,2]
[352743211,1739286642071,-153.0,0.00013699,2]
[352743212,1739286642080,-153.0,0.00013699,2]
[352743213,1739286642090,-153.0,0.00013699,2]
[352743214,1739286642099,-153.0,0.00013699,2]
[352743215,1739286642108,-153.0,0.00013699,2]
[352743216,1739286642117,-153.0,0.00013699,2]
[352743217,1739286642126,-153.0,0.00013699,2]
[352743218,1739286642137,-153.0,0.00013699,2]
[352743219,1739286642147,-153.0,0.00013699,2]
[352743220,1739286642156,-153.0,0.00013699,2]
[352743221,1739286642166,-153.0,0.00013699,2]
[352743222,1739286642175,-153.04701588,0.00013699,2]
[352743223,1739286642184,-176.02,0.00013699,2]
[352743224,1739286642194,-176.02,0.00013699,2]
[352743225,1739286642203,-176.02,0.00013699,2]
[352743226,1739286642213,-176.02,0.00013699,2]
[352743227,1739286642222,-176.02,0.00013699,2]
[352743228,1739286642233,-176.02,0.00013699,2]
[352743229,1739286642242,-176.02,0.00013699,2]
[352743230,1739286642252,-176.02,0.00013699,2]
[352743231,1739286642261,-176.02,0.00013699,2]
[352743232,1739286642271,-176.02,0.00013699,2]
[352743233,1739286642281,-176.02,0.00013699,2]
[352743234,1739286642290,-176.02,0.00013699,2]
[352743235,1739286642300,-176.02,0.00013699,2]
[352743236,1739286642309,-176.02,0.00013699,2]
[352743237,1739286642319,-176.02,0.00013699,2]
[352743238,1739286642328,-176.02,0.00013699,2]
[352743239,1739286642338,-176.02,0.00013699,2]
[352743240,1739286642347,-176.02,0.00013699,2]
[352743241,1739286642357,-176.02,0.00013699,2]
[352743242,1739286642366,-176.19333056,0.00013699,2]
[352743243,1739286642375,-4000.0,0.00013699,2]
[352743244,1739286642388,-182.23,0.00013699,2]
[352743245,1739286642397,-200.0,0.00013699,2]
[352743246,1739286642406,-500.0,0.00013699,2]
[352743247,1739286642416,-500.0,0.00013699,13]
[352743248,1739286642424,-500.0,0.00013699,13]
[352743249,1739286642434,-500.0,0.00013699,13]
[352743250,1739286642444,-500.0,0.00013699,13]
[352743251,1739286642453,-500.0,0.00013699,13]
[352743252,1739286642462,-500.0,0.00013699,13]
[352743253,1739286642471,-506.0,0.00013699,13]
[352743254,1739286642480,-227.05,0.00013699,2]
[352743255,1739286642490,-5800.0,0.00013699,2]
[352743256,1739286642499,-200.0,0.000137,2]
[352743257,1739286642509,-257.9,0.000137,2]
[352743258,1739286642518,-152.0,0.00013707,6]
[352743259,1739286642528,-438.84,0.00013863,2]
[352743260,1739286642538,-150.0,0.00013863,2]
[352743261,1739286642547,-150.36,0.00013863,2]
[352743262,1739286642557,-150.0,0.00013863,2]
[352743263,1739286642566,-150.0,0.00013863,2]
[352743264,1739286642577,-438.84,0.00013863,2]
[352743265,1739286642587,-150.0,0.00013863,2]
[352743266,1739286642596,-150.0,0.00013863,2]
[352743267,1739286642606,-1600.0,0.000139,5]
[352743268,1739286642615,-2000.0,0.00013972,2]
[352743269,1739286642625,-152.0,0.00013985,7]
[352743270,1739286642641,-5000.0,0.00014,2]
[352743271,1739286642651,-1100.0,0.00014,4]
[352743272,1739286642660,-500.0,0.00014,2]
[352743273,1739286642670,-1000.0,0.00014,2]
[352743274,1739286642680,-5000.0,0.00014,2]
[352743275,1739286642690,-300.0,0.00014,2]
[352743276,1739286642700,-249.48,0.00014063,2]
[352743277,1739286642713,-3433.32662276,0.00014073,2]
[352743278,1739286642727,-3023.31817723,0.000141,2]
[352743279,1739286642741,-301.71605557,0.00014163,2]
[352743280,1739286642752,-2000.0,0.0001419,4]
[352743281,1739286642761,-164.38613959,0.00014211,2]
[352743282,1739286642771,-1000.0,0.00014219,2]
[352743283,1739286642782,-1000.0,0.00014219,2]
[352743284,1739286642791,-1000.0,0.00014219,2]
[352743285,1739286642806,-1000.0,0.00014219,2]
[352743286,1739286642815,-1000.0,0.00014219,2]
[352743287,1739286642825,-1000.0,0.00014219,2]
[352743288,1739286642835,-1000.0,0.00014219,2]
[352743289,1739286642846,-1000.0,0.00014219,2]
[352743290,1739286642856,-1000.0,0.00014219,2]
[352743291,1739286642866,-1000.0,0.00014219,2]
[352743292,1739286642877,-714.73485084,0.00014219,2]
[352743293,1739286642888,-2000.0,0.00014246,2]
[352743294,1739286642898,-152.0,0.00014264,8]
[352743295,1739286642908,-150.0,0.00014301,2]
[352743296,1739286642918,-438.84,0.00014301,2]
[352743297,1739286642928,-150.0,0.00014301,2]
[352743298,1739286642939,-150.0,0.00014301,2]
[352743299,1739286642949,-150.0,0.00014301,2]
[352743300,1739286642959,-150.0,0.00014301,2]
[352743301,1739286642969,-150.0,0.00014301,2]
[352743302,1739286642979,-150.0,0.00014301,2]
[352743303,1739286642989,-150.0,0.00014301,2]
[352743304,1739286642999,-438.84,0.00014301,2]
[352743305,1739286643009,-438.84,0.00014301,2]
[352743306,1739286643018,-150.0,0.00014301,2]
[352743307,1739286643028,-150.0,0.00014301,2]
[352743308,1739286643037,-150.0,0.00014301,2]
[352743309,1739286643046,-150.0,0.00014301,2]
[352743310,1739286643055,-150.0,0.00014301,2]
[352743311,1739286643065,-150.0,0.00014301,2]
[352743312,1739286643075,-150.0,0.00014301,2]
[352743313,1739286643085,-877.68,0.00014301,2]
[352743314,1739286643094,-150.0,0.00014301,2]
[352743315,1739286643104,-438.84,0.00014301,2]
[352743316,1739286643113,-150.0,0.00014301,2]
[352743317,1739286643123,-150.0,0.00014301,2]
[352743318,1739286643133,-539.0,0.00014321,2]
[352743319,1739286643143,-3914.0,0.00014321,2]
[352743320,1739286643152,-150.0,0.00014321,2]
[352743321,1739286643161,-249.48,0.0001449,2]
[352743322,1739286643170,-30000.0,0.000145,4]
[352743323,1739286643180,-991.85,0.00014504,2]
[352743324,1739286643189,-2000.0,0.0001452,2]
[352743325,1739286643199,-152.0,0.00014543,9]
[352743326,1739286643208,-638.0,0.00014557,2]
[352743327,1739286643218,-569.0,0.00014557,2]
[352743328,1739286643227,-1271.15,0.00014557,2]
[352743329,1739286643237,-2951.0,0.00014557,2]
[352743330,1739286643246,-1000.0,0.00014562,2]
[352743331,1739286643255,-8000.0,0.00014567,3]
[352743332,1739286643264,-172.8,0.00014578,2]
[352743333,1739286643273,-2000.0,0.00014587,2]
[352743334,1739286643283,-2088.058,0.000146,2]
[352743335,1739286643292,-301.71605557,0.00014707,2]
[352743336,1739286643301,-3433.32662276,0.00014708,2]
[352743337,1739286643310,-150.0,0.00014721,2]
[352743338,1739286643320,-2000.0,0.00014794,2]
[352743339,1739286643329,-152.0,0.00014821,10]
[352743340,1739286643338,-249.48,0.0001489,2]
[352743341,1739286643348,-249.48,0.00014894,2]
[352743343,1739286643357,-64993.0,0.000149,2]
[352743344,1739286643368,-500.0,0.00014904,2]
[352743345,1739286643377,-500.0,0.00014904,2]
[352743346,1739286643390,-500.0,0.00014904,2]
[352743347,1739286643399,-500.0,0.00014904,2]
[352743349,1739286643409,-500.0,0.00014904,2]
[352743351,1739286643418,-500.0,0.00014904,2]
[352743352,1739286643427,-500.0,0.00014904,2]
[352743353,1739286643436,-500.0,0.00014904,2]
[352743354,1739286643446,-500.0,0.00014904,2]
[352743355,1739286643455,-500.0,0.00014904,2]
[352743356,1739286643465,-500.0,0.00014904,2]
[352743358,1739286643475,-500.0,0.00014904,2]
[352743360,1739286643485,-500.0,0.00014904,2]
[352743363,1739286643494,-500.0,0.00014904,2]
[352743366,1739286643503,-500.0,0.00014904,2]
[352743369,1739286643513,-500.0,0.00014904,2]
[352743372,1739286643522,-500.0,0.00014904,2]
[352743375,1739286643531,-500.0,0.00014904,2]
[352743378,1739286643541,-500.0,0.00014904,2]
[352743381,1739286643550,-500.0,0.00014904,2]
[352743384,1739286643559,-500.0,0.00014904,2]
[352743387,1739286643569,-480.0,0.00014904,2]
[352743390,1739286643579,-274.21,0.00014909,2]
[352743393,1739286643588,-249.48,0.0001499,2]
[352743396,1739286643597,-927.21,0.00015,10]
[352743399,1739286643607,-1000.0,0.00015,2]
[352743402,1739286643616,-5000.0,0.00015,2]
[352743405,1739286643625,-10007.65068973,0.00015,30]
[352743408,1739286643638,-900.0,0.00015,2]
[352743411,1739286643647,-30000.0,0.00015,4]
[352743414,1739286643657,-30000.0,0.00015,4]
[352743416,1739286643666,-7464.0,0.00015,2]
[352743420,1739286643676,-600.0,0.00015,2]
[352743421,1739286643686,-489.47783723,0.00015068,2]
[352743423,1739286643695,-1495.77,0.00015068,2]
[352743425,1739286643704,-300.0,0.00015068,2]
[352743427,1739286643713,-152.0,0.000151,11]
[352743429,1739286643722,-300.0,0.000151,2]
[352743431,1739286643732,-196.55,0.00015111,2]
[352743433,1739286643742,-438.84,0.00015123,2]
[352743435,1739286643751,-438.84,0.00015123,2]
[352743437,1739286643761,-438.84,0.00015123,2]
[352743438,1739286643770,-804.0,0.00015178,2]
[352743439,1739286643779,-249.48,0.0001519,2]
[352743440,1739286643788,-249.48,0.0001519,2]
[352743441,1739286643798,-94082.58827464,0.000152,2]
[352743442,1739286643810,-438.03,0.00015233,2]
[352743443,1739286643819,-500.0,0.00015244,2]
[352743444,1739286643828,-500.0,0.00015244,2]
[352743445,1739286643837,-301.71605557,0.00015251,2]
[352743446,1739286643846,-150.0,0.00015266,2]
[352743447,1739286643855,-5554.0,0.000153,3]
[352743448,1739286643865,-249.48,0.00015333,2]
[352743449,1739286643876,-3433.32662276,0.00015343,2]
[352743450,1739286643888,-1000.0,0.00015353,2]
[352743451,1739286643898,-152.0,0.00015379,12]
[352743452,1739286643908,-2000.0,0.00015489,4]
[352743453,1739286643917,-249.48,0.0001549,2]
[352743454,1739286643926,-30000.0,0.000155,4]
[352743455,1739286643936,-32792.45213483,0.000155,4]
[352743456,1739286643946,-581.12,0.00015632,2]
[352743457,1739286643956,-152.0,0.00015657,13]
[352743458,1739286643966,-5554.0,0.000157,5]
[352743459,1739286643976,-301.71605557,0.00015795,2]
[352743460,1739286643986,-2100.0,0.000158,5]
[352743461,1739286643996,-150.0,0.00015811,2]
[352743462,1739286644006,-1000.0,0.00015886,2]
[352743463,1739286644017,-2700.0,0.000159,5]
[352743464,1739286644026,-1000.0,0.00015906,2]
[352743465,1739286644037,-152.0,0.00015936,14]
[352743466,1739286644047,-3433.32662276,0.00015977,2]
[352743467,1739286644058,-249.48,0.0001599,2]
[352743468,1739286644068,-1100.0,0.00016,6]
[352743469,1739286644077,-900.0,0.00016,17]
[352743470,1739286644087,-4632.5452234,0.00016,10]
[352743471,1739286644097,-900.0,0.00016,3]
[352743472,1739286644108,-299.64303,0.00016,2]
[352743473,1739286644118,-30000.0,0.00016,4]
[352743474,1739286644128,-3793.60513,0.00016,2]
[352743475,1739286644140,-2163.7583024,0.00016124,2]
[352743476,1739286644150,-152.0,0.00016214,15]
[352743477,1739286644160,-220.35772206,0.00016214,5]
[352743478,1739286644170,-1436.504382,0.00016229,2]
[352743479,1739286644181,-249.48,0.0001623,2]
[352743480,1739286644191,-249.48,0.0001623,2]
[352743481,1739286644201,-249.48,0.0001623,2]
[352743482,1739286644211,-134477.67648036,0.00016238,2]
[352743483,1739286644221,-274.21,0.00016264,2]
[352743484,1739286644231,-302.8405413,0.00016338,2]
[352743485,1739286644240,-20791.1011581,0.00016338,2]
[352743486,1739286644250,-301.71605557,0.00016338,2]
[352743487,1739286644260,-224.88860302,0.00016356,2]
[352743488,1739286644270,-1209.9125098,0.00016364,2]
[352743489,1739286644280,-2572.22859932,0.00016373,2]
[352743490,1739286644290,-1500.0,0.000164,30]
[352743491,1739286644300,-2088.058,0.000164,2]
[352743492,1739286644309,-400.0,0.000164,2]
[352743493,1739286644319,-249.48,0.00016417,2]
[352743494,1739286644329,-810.6485022,0.00016421,2]
[352743495,1739286644339,-1469.7735144,0.00016424,2]
[352743496,1739286644349,-249.48,0.00016425,2]
[352743497,1739286644359,-249.48,0.00016425,2]
[352743498,1739286644369,-249.48,0.00016425,2]
[352743499,1739286644381,-249.48,0.00016425,2]
[352743500,1739286644390,-249.48,0.00016425,2]
[352743501,1739286644400,-249.48,0.00016425,2]
[352743502,1739286644410,-249.48,0.00016425,2]
[352743503,1739286644420,-249.48,0.00016425,2]
[352743504,1739286644431,-249.48,0.00016425,2]
[352743505,1739286644441,-249.48,0.00016425,2]
[352743506,1739286644451,-249.48,0.00016425,2]
[352743507,1739286644462,-1469.7735144,0.00016427,2]
[352743508,1739286644472,-1469.7735144,0.00016427,2]
[352743509,1739286644482,-1214.2918432,0.00016427,2]
[352743510,1739286644492,-1218.6711766,0.00016427,2]
[352743511,1739286644501,-1431.2470663,0.00016427,2]
[352743512,1739286644512,-1425.9897505,0.00016427,2]
[352743513,1739286644522,-629.43,0.00016434,2]
[352743514,1739286644532,-580997.12877755,0.00016435,2]
[352743515,1739286644542,-209.614751,0.00016435,2]
[352743516,1739286644552,-209.614751,0.00016435,2]
[352743517,1739286644563,-842.458716,0.00016435,2]
[352743518,1739286644573,-842.458716,0.00016435,2]
[352743519,1739286644583,-158.927127,0.00016435,2]
[352743520,1739286644593,-158.927127,0.00016435,2]
[352743521,1739286644603,-151.0,0.00016435,2]
[352743522,1739286644612,-373.641843,0.00016435,2]
[352743523,1739286644622,-373.641843,0.00016435,2]
[352743524,1739286644632,-151.0,0.00016435,2]
[352743525,1739286644642,-151.0,0.00016435,2]
[352743526,1739286644652,-297.36288,0.00016435,2]
[352743527,1739286644663,-276.934846,0.00016435,2]
[352743528,1739286644673,-276.934846,0.00016435,2]
[352743529,1739286644682,-151.0,0.00016435,2]
[352743530,1739286644692,-151.311519,0.00016435,2]
[352743531,1739286644702,-151.0,0.00016435,2]
[352743532,1739286644713,-826.481489,0.00016435,2]
[352743533,1739286644723,-826.481489,0.00016435,2]
[352743534,1739286644733,-1000.0,0.00016437,2]
[352743535,1739286644743,-1000.0,0.00016437,2]
[352743536,1739286644753,-1000.0,0.00016437,2]
[352743537,1739286644763,-1000.0,0.00016437,2]
[352743538,1739286644772,-195.46428,0.00016438,2]
[352743539,1739286644782,-158.64369,0.00016438,2]
[352743540,1739286644792,-195.46428,0.00016438,2]
[352743541,1739286644806,-158.643691,0.00016438,2]
[352743542,1739286644816,-195.46428,0.00016438,2]
[352743543,1739286644826,-158.64369,0.00016438,2]
[352743544,1739286644836,-204.34236405,0.00016438,2]
[352743545,1739286644846,-150.0,0.00016438,2]
[352743546,1739286644856,-195.46428,0.00016438,2]